{"text_format":"3","workbook":"xlsx","n_sheets":4,"sheets":["START","PROSJEKTPARAMETERE","PROSJEKTDETALJER","PROSJEKTTOTALER"],"not_rendered":{"charts":2,"defined_names":3,"pivot_tables":1},"read":"whole","date_system":"1900"}

{"sheet":"START","index":0,"n_rows":7,"n_cols":2,"rows_kept":7}
[null,"OM DENNE MALEN"]
[null,"Spor prosjektparametere, prosjektdetaljer og prosjekttotaler i arbeidsboken Sporing av arrangementsplanlegging."]
[null,"Skriv inn informasjon i Prosjektparametere-regnearket for å oppdatere stolpediagrammer, og i Prosjektdetaljer-regneark. Pivottabell i Prosjektkostnader-regnearket oppdateres automatisk."]
[null,"Fyll ut firmanavn i Parametere-regnearket, og de vil automatisk oppdateres i andre regneark."]
[null,"Obs!  "]
[null,"Flere instruksjoner finnes i kolonne A i hvert regneark i arbeidsboken Sporing av arrangementsplanlegging. Denne teksten er skjult med hensikt. Hvis du vil fjerne teksten, velger du kolonne A og deretter SLETT. Hvis du vil vise teksten, velger du kolonne A, og endrer deretter skriftfarge."]
[null,"Hvis du vil finne ut mer om tabeller i regneark, kan du trykke på SKIFT og deretter på F10 i en tabell, velge alternativet for TABELL og deretter ALTERNATIV TEKST."]

{"sheet":"PROSJEKTPARAMETERE","index":1,"n_rows":19,"n_cols":9,"rows_kept":19,"merged":[[23,1,42,3]]}
[null,"Firmanavn"]
[null,"Prosjektsporing for arrangementsbehandling"]
[null,{"$f":"B1&\" Konfidensielt\"","v":"Firmanavn Konfidensielt"}]
[null,"Skyggelagte celler beregnes for deg. Du trenger ikke å skrive inn noe i dem."]
[null,"PROSJEKTTYPE","KUNDEANSVARLIG","PROSJEKTLEDER","STRATEGILEDER","UTFORMINGSSPESIALIST","ARRANGEMENTSBEMANNING","ADMINISTRASJONSPERSONALE","Totalt"]
[null,"Utvikling av arrangementsstrategi",{"v":0.2,"d":"20%"},{"v":0.1,"d":"10%"},{"v":0.6,"d":"60%"},{"v":0,"d":"0%"},{"v":0,"d":"0%"},{"v":0.1,"d":"10%"},{"$f":"SUM(Parametere[[#This Row],[KUNDEANSVARLIG]:[ADMINISTRASJONSPERSONALE]])","v":{"v":1,"d":"100%"}}]
[null,"Arrangementsplanlegging",{"v":0.2,"d":"20%"},{"v":0.5,"d":"50%"},{"v":0.1,"d":"10%"},{"v":0.1,"d":"10%"},{"v":0,"d":"0%"},{"v":0.1,"d":"10%"},{"$f":"SUM(Parametere[[#This Row],[KUNDEANSVARLIG]:[ADMINISTRASJONSPERSONALE]])","v":{"v":0.9999999999999999,"d":"100%"}}]
[null,"Arrangementsutforming",{"v":0.2,"d":"20%"},{"v":0.2,"d":"20%"},{"v":0,"d":"0%"},{"v":0.5,"d":"50%"},{"v":0,"d":"0%"},{"v":0.1,"d":"10%"},{"$f":"SUM(Parametere[[#This Row],[KUNDEANSVARLIG]:[ADMINISTRASJONSPERSONALE]])","v":{"v":1,"d":"100%"}}]
[null,"Arrangementslogistikk",{"v":0.2,"d":"20%"},{"v":0.6,"d":"60%"},{"v":0,"d":"0%"},{"v":0,"d":"0%"},{"v":0.1,"d":"10%"},{"v":0.1,"d":"10%"},{"$f":"SUM(Parametere[[#This Row],[KUNDEANSVARLIG]:[ADMINISTRASJONSPERSONALE]])","v":{"v":1,"d":"100%"}}]
[null,"Arrangementsbemanning",{"v":0.2,"d":"20%"},{"v":0.1,"d":"10%"},{"v":0,"d":"0%"},{"v":0,"d":"0%"},{"v":0.6,"d":"60%"},{"v":0.1,"d":"10%"},{"$f":"SUM(Parametere[[#This Row],[KUNDEANSVARLIG]:[ADMINISTRASJONSPERSONALE]])","v":{"v":1,"d":"100%"}}]
[null,"Arrangementsvurdering",{"v":0.2,"d":"20%"},{"v":0.2,"d":"20%"},{"v":0.2,"d":"20%"},{"v":0.2,"d":"20%"},{"v":0,"d":"0%"},{"v":0.2,"d":"20%"},{"$f":"SUM(Parametere[[#This Row],[KUNDEANSVARLIG]:[ADMINISTRASJONSPERSONALE]])","v":{"v":1,"d":"100%"}}]
[null,"Blandede satser",{"v":180,"d":"kr 180"},{"v":120,"d":"kr 120"},{"v":150,"d":"kr 150"},{"v":100,"d":"kr 100"},{"v":80,"d":"kr 80"},{"v":60,"d":"kr 60"}]
[]
[{"$nulls":5},"Kolonnediagram som viser planlagte kontra faktiske timer, er i denne cellen."]
[null,null,"KUNDEANSVARLIG","PROSJEKTLEDER","STRATEGILEDER","UTFORMINGSSPESIALIST","ARRANGEMENTSBEMANNING","ADMINISTRASJONSPERSONALE"]
[null,"PLANLAGTE KOSTNADER",{"$f":"SUBTOTAL(109,Prosjektdetaljer[KUNDEANSVARLIG])","v":{"v":54000,"d":"kr 54,000.00"}},{"$f":"SUBTOTAL(109,Prosjektdetaljer[PROSJEKTLEDER])","v":{"v":52200,"d":"kr 52,200.00"}},{"$f":"SUBTOTAL(109,Prosjektdetaljer[STRATEGILEDER])","v":{"v":24000,"d":"kr 24,000.00"}},{"$f":"SUBTOTAL(109,Prosjektdetaljer[UTFORMINGSSPESIALIST])","v":{"v":29000,"d":"kr 29,000.00"}},{"$f":"SUBTOTAL(109,Prosjektdetaljer[ARRANGEMENTSBEMANNING])","v":{"v":13200,"d":"kr 13,200.00"}},{"$f":"SUBTOTAL(109,Prosjektdetaljer[ADMINISTRASJONSPERSONALE])","v":{"v":9000,"d":"kr 9,000.00"}}]
[null,"FAKTISKE KOSTNADER",{"$f":"SUBTOTAL(109,Prosjektdetaljer[[KUNDEANSVARLIG ]])","v":{"v":54360,"d":"kr 54,360.00"}},{"$f":"SUBTOTAL(109,Prosjektdetaljer[[PROSJEKTLEDER ]])","v":{"v":51540,"d":"kr 51,540.00"}},{"$f":"SUBTOTAL(109,Prosjektdetaljer[[STRATEGILEDER ]])","v":{"v":25650,"d":"kr 25,650.00"}},{"$f":"SUBTOTAL(109,Prosjektdetaljer[[UTFORMINGSSPESIALIST ]])","v":{"v":28900,"d":"kr 28,900.00"}},{"$f":"SUBTOTAL(109,Prosjektdetaljer[[ARRANGEMENTSBEMANNING ]])","v":{"v":13400,"d":"kr 13,400.00"}},{"$f":"SUBTOTAL(109,Prosjektdetaljer[[ADMINISTRASJONSPERSONALE ]])","v":{"v":9060,"d":"kr 9,060.00"}}]
[null,"PLANLAGTE TIMER",{"$f":"C16/$C$12","v":{"v":300,"d":"300.00"}},{"$f":"D16/$C$12","v":{"v":290,"d":"290.00"}},{"v":133.33333333333334,"d":"133.33"},{"v":161.11111111111111,"d":"161.11"},{"v":73.33333333333333,"d":"73.33"},{"v":50,"d":"50.00"}]
[null,"FAKTISKE TIMER",{"$f":"C17/$C$12","v":{"v":302,"d":"302.00"}},{"$f":"D17/$C$12","v":{"v":286.3333333333333,"d":"286.33"}},{"$f":"E17/$C$12","v":{"v":142.5,"d":"142.50"}},{"$f":"F17/$C$12","v":{"v":160.55555555555554,"d":"160.56"}},{"$f":"G17/$C$12","v":{"v":74.44444444444444,"d":"74.44"}},{"$f":"H17/$C$12","v":{"v":50.333333333333336,"d":"50.33"}}]

{"sheet":"PROSJEKTDETALJER","index":2,"n_rows":10,"n_cols":23,"rows_kept":10}
[null,{"$f":"PROSJEKTPARAMETERE!B1","v":"Firmanavn"}]
[null,"Prosjektsporing for arrangementsbehandling"]
[null,{"$f":"PROSJEKTPARAMETERE!B3","v":"Firmanavn Konfidensielt"}]
["Angi informasjon i Prosjektdetaljer-tabellen, som starter i cellen til høyre.\nINFORMASJON\nHvis du vil legge til en rad i tabellen til høyre, velger du cellen lengst til høyre i tabellen (ikke Totaler-raden). Trykk på TAB, eller trykk på SKIFT+F10 der du ønsker å sette inn en rad. Velg deretter Sett inn | Tabellrader ovenfor/nedenfor.\nSørg for at du sletter alle ubrukte rader. Dette er fordi at PROSJEKTTOTALER-pivottabellen bruker alle tabellcellene, og ellers ville ha gitt deg feil resultat.","PROSJEKTNAVN","PROSJEKTTYPE","BEREGNET START","BEREGNET AVSLUTNING","FAKTISK START","FAKTISK AVSLUTNING","BEREGNET ARBEID","FAKTISK ARBEID","BEREGNET VARIGHET","FAKTISK VARIGHET","KUNDEANSVARLIG","PROSJEKTLEDER","STRATEGILEDER","UTFORMINGSSPESIALIST","ARRANGEMENTSBEMANNING","ADMINISTRASJONSPERSONALE","KUNDEANSVARLIG ","PROSJEKTLEDER ","STRATEGILEDER ","UTFORMINGSSPESIALIST ","ARRANGEMENTSBEMANNING ","ADMINISTRASJONSPERSONALE "]
[null,"Prosjekt 1","Utvikling av arrangementsstrategi",{"$f":"DATE(YEAR(TODAY()),6,9)","v":"2022-06-09"},{"$f":" DATE(YEAR(TODAY()),8,7)","v":"2022-08-07"},{"$f":"DATE(YEAR(TODAY()),6,29)","v":"2022-06-29"},{"$f":"DATE(YEAR(TODAY()),9,3)","v":"2022-09-03"},200,220,{"$f":"DAYS360(Prosjektdetaljer[[#This Row],[BEREGNET START]],Prosjektdetaljer[[#This Row],[BEREGNET AVSLUTNING]],FALSE)","v":58},{"$f":"DAYS360(Prosjektdetaljer[[#This Row],[FAKTISK START]],Prosjektdetaljer[[#This Row],[FAKTISK AVSLUTNING]],FALSE)","v":64},{"$f":"INDEX(Parametere[],MATCH(Prosjektdetaljer[[#This Row],[PROSJEKTTYPE]],Parametere[PROSJEKTTYPE],0),MATCH(Prosjektdetaljer[[#Headers],[KUNDEANSVARLIG]],Parametere[#Headers],0))*INDEX(PROSJEKTPARAMETERE!$B$12:$H$12,1,MATCH(Prosjektdetaljer[[#Headers],[KUNDEANSVARLIG]],Parametere[#Headers],0))*Prosjektdetaljer[[#This Row],[BEREGNET ARBEID]]","v":{"v":7200,"d":"kr 7,200"}},{"$f":"INDEX(Parametere[],MATCH(Prosjektdetaljer[[#This Row],[PROSJEKTTYPE]],Parametere[PROSJEKTTYPE],0),MATCH(Prosjektdetaljer[[#Headers],[PROSJEKTLEDER]],Parametere[#Headers],0))*INDEX(PROSJEKTPARAMETERE!$B$12:$H$12,1,MATCH(Prosjektdetaljer[[#Headers],[PROSJEKTLEDER]],Parametere[#Headers],0))*Prosjektdetaljer[[#This Row],[BEREGNET ARBEID]]","v":{"v":2400,"d":"kr 2,400"}},{"$f":"INDEX(Parametere[],MATCH(Prosjektdetaljer[[#This Row],[PROSJEKTTYPE]],Parametere[PROSJEKTTYPE],0),MATCH(Prosjektdetaljer[[#Headers],[STRATEGILEDER]],Parametere[#Headers],0))*INDEX(PROSJEKTPARAMETERE!$B$12:$H$12,1,MATCH(Prosjektdetaljer[[#Headers],[STRATEGILEDER]],Parametere[#Headers],0))*Prosjektdetaljer[[#This Row],[BEREGNET ARBEID]]","v":{"v":18000,"d":"kr 18,000"}},{"$f":"INDEX(Parametere[],MATCH(Prosjektdetaljer[[#This Row],[PROSJEKTTYPE]],Parametere[PROSJEKTTYPE],0),MATCH(Prosjektdetaljer[[#Headers],[UTFORMINGSSPESIALIST]],Parametere[#Headers],0))*INDEX(PROSJEKTPARAMETERE!$B$12:$H$12,1,MATCH(Prosjektdetaljer[[#Headers],[UTFORMINGSSPESIALIST]],Parametere[#Headers],0))*Prosjektdetaljer[[#This Row],[BEREGNET ARBEID]]","v":{"v":0,"d":"kr 0"}},{"$f":"INDEX(Parametere[],MATCH(Prosjektdetaljer[[#This Row],[PROSJEKTTYPE]],Parametere[PROSJEKTTYPE],0),MATCH(Prosjektdetaljer[[#Headers],[ARRANGEMENTSBEMANNING]],Parametere[#Headers],0))*INDEX(PROSJEKTPARAMETERE!$B$12:$H$12,1,MATCH(Prosjektdetaljer[[#Headers],[ARRANGEMENTSBEMANNING]],Parametere[#Headers],0))*Prosjektdetaljer[[#This Row],[BEREGNET ARBEID]]","v":{"v":0,"d":"kr 0"}},{"$f":"INDEX(Parametere[],MATCH(Prosjektdetaljer[[#This Row],[PROSJEKTTYPE]],Parametere[PROSJEKTTYPE],0),MATCH(Prosjektdetaljer[[#Headers],[ADMINISTRASJONSPERSONALE]],Parametere[#Headers],0))*INDEX(PROSJEKTPARAMETERE!$B$12:$H$12,1,MATCH(Prosjektdetaljer[[#Headers],[ADMINISTRASJONSPERSONALE]],Parametere[#Headers],0))*Prosjektdetaljer[[#This Row],[BEREGNET ARBEID]]","v":{"v":1200,"d":"kr 1,200"}},{"$f":"INDEX(Parametere[],MATCH(Prosjektdetaljer[[#This Row],[PROSJEKTTYPE]],Parametere[PROSJEKTTYPE],0),MATCH(Prosjektdetaljer[[#Headers],[KUNDEANSVARLIG]],Parametere[#Headers],0))*INDEX(PROSJEKTPARAMETERE!$B$12:$H$12,1,MATCH(Prosjektdetaljer[[#Headers],[KUNDEANSVARLIG]],Parametere[#Headers],0))*Prosjektdetaljer[[#This Row],[FAKTISK ARBEID]]","v":{"v":7920,"d":"kr 7,920"}},{"$f":"INDEX(Parametere[],MATCH(Prosjektdetaljer[[#This Row],[PROSJEKTTYPE]],Parametere[PROSJEKTTYPE],0),MATCH(Prosjektdetaljer[[#Headers],[PROSJEKTLEDER]],Parametere[#Headers],0))*INDEX(PROSJEKTPARAMETERE!$B$12:$H$12,1,MATCH(Prosjektdetaljer[[#Headers],[PROSJEKTLEDER]],Parametere[#Headers],0))*Prosjektdetaljer[[#This Row],[FAKTISK ARBEID]]","v":{"v":2640,"d":"kr 2,640"}},{"$f":"INDEX(Parametere[],MATCH(Prosjektdetaljer[[#This Row],[PROSJEKTTYPE]],Parametere[PROSJEKTTYPE],0),MATCH(Prosjektdetaljer[[#Headers],[STRATEGILEDER]],Parametere[#Headers],0))*INDEX(PROSJEKTPARAMETERE!$B$12:$H$12,1,MATCH(Prosjektdetaljer[[#Headers],[STRATEGILEDER]],Parametere[#Headers],0))*Prosjektdetaljer[[#This Row],[FAKTISK ARBEID]]","v":{"v":19800,"d":"kr 19,800"}},{"$f":"INDEX(Parametere[],MATCH(Prosjektdetaljer[[#This Row],[PROSJEKTTYPE]],Parametere[PROSJEKTTYPE],0),MATCH(Prosjektdetaljer[[#Headers],[UTFORMINGSSPESIALIST]],Parametere[#Headers],0))*INDEX(PROSJEKTPARAMETERE!$B$12:$H$12,1,MATCH(Prosjektdetaljer[[#Headers],[UTFORMINGSSPESIALIST]],Parametere[#Headers],0))*Prosjektdetaljer[[#This Row],[FAKTISK ARBEID]]","v":{"v":0,"d":"kr 0"}},{"$f":"INDEX(Parametere[],MATCH(Prosjektdetaljer[[#This Row],[PROSJEKTTYPE]],Parametere[PROSJEKTTYPE],0),MATCH(Prosjektdetaljer[[#Headers],[ARRANGEMENTSBEMANNING]],Parametere[#Headers],0))*INDEX(PROSJEKTPARAMETERE!$B$12:$H$12,1,MATCH(Prosjektdetaljer[[#Headers],[ARRANGEMENTSBEMANNING]],Parametere[#Headers],0))*Prosjektdetaljer[[#This Row],[FAKTISK ARBEID]]","v":{"v":0,"d":"kr 0"}},{"$f":"INDEX(Parametere[],MATCH(Prosjektdetaljer[[#This Row],[PROSJEKTTYPE]],Parametere[PROSJEKTTYPE],0),MATCH(Prosjektdetaljer[[#Headers],[ADMINISTRASJONSPERSONALE]],Parametere[#Headers],0))*INDEX(PROSJEKTPARAMETERE!$B$12:$H$12,1,MATCH(Prosjektdetaljer[[#Headers],[ADMINISTRASJONSPERSONALE]],Parametere[#Headers],0))*Prosjektdetaljer[[#This Row],[FAKTISK ARBEID]]","v":{"v":1320,"d":"kr 1,320"}}]
[null,"Prosjekt 2","Arrangementsplanlegging",{"$f":"DATE(YEAR(TODAY())+1,6,25)","v":"2023-06-25"},{"$f":"DATE(YEAR(TODAY())+1,7,27)","v":"2023-07-27"},{"$f":"DATE(YEAR(TODAY()),7,15)","v":"2022-07-15"},{"$f":"DATE(YEAR(TODAY())+1,8,25)","v":"2023-08-25"},400,390,{"$f":"DAYS360(Prosjektdetaljer[[#This Row],[BEREGNET START]],Prosjektdetaljer[[#This Row],[BEREGNET AVSLUTNING]],FALSE)","v":32},{"$f":"DAYS360(Prosjektdetaljer[[#This Row],[FAKTISK START]],Prosjektdetaljer[[#This Row],[FAKTISK AVSLUTNING]],FALSE)","v":400},{"$f":"INDEX(Parametere[],MATCH(Prosjektdetaljer[[#This Row],[PROSJEKTTYPE]],Parametere[PROSJEKTTYPE],0),MATCH(Prosjektdetaljer[[#Headers],[KUNDEANSVARLIG]],Parametere[#Headers],0))*INDEX(PROSJEKTPARAMETERE!$B$12:$H$12,1,MATCH(Prosjektdetaljer[[#Headers],[KUNDEANSVARLIG]],Parametere[#Headers],0))*Prosjektdetaljer[[#This Row],[BEREGNET ARBEID]]","v":{"v":14400,"d":"kr 14,400"}},{"$f":"INDEX(Parametere[],MATCH(Prosjektdetaljer[[#This Row],[PROSJEKTTYPE]],Parametere[PROSJEKTTYPE],0),MATCH(Prosjektdetaljer[[#Headers],[PROSJEKTLEDER]],Parametere[#Headers],0))*INDEX(PROSJEKTPARAMETERE!$B$12:$H$12,1,MATCH(Prosjektdetaljer[[#Headers],[PROSJEKTLEDER]],Parametere[#Headers],0))*Prosjektdetaljer[[#This Row],[BEREGNET ARBEID]]","v":{"v":24000,"d":"kr 24,000"}},{"$f":"INDEX(Parametere[],MATCH(Prosjektdetaljer[[#This Row],[PROSJEKTTYPE]],Parametere[PROSJEKTTYPE],0),MATCH(Prosjektdetaljer[[#Headers],[STRATEGILEDER]],Parametere[#Headers],0))*INDEX(PROSJEKTPARAMETERE!$B$12:$H$12,1,MATCH(Prosjektdetaljer[[#Headers],[STRATEGILEDER]],Parametere[#Headers],0))*Prosjektdetaljer[[#This Row],[BEREGNET ARBEID]]","v":{"v":6000,"d":"kr 6,000"}},{"$f":"INDEX(Parametere[],MATCH(Prosjektdetaljer[[#This Row],[PROSJEKTTYPE]],Parametere[PROSJEKTTYPE],0),MATCH(Prosjektdetaljer[[#Headers],[UTFORMINGSSPESIALIST]],Parametere[#Headers],0))*INDEX(PROSJEKTPARAMETERE!$B$12:$H$12,1,MATCH(Prosjektdetaljer[[#Headers],[UTFORMINGSSPESIALIST]],Parametere[#Headers],0))*Prosjektdetaljer[[#This Row],[BEREGNET ARBEID]]","v":{"v":4000,"d":"kr 4,000"}},{"$f":"INDEX(Parametere[],MATCH(Prosjektdetaljer[[#This Row],[PROSJEKTTYPE]],Parametere[PROSJEKTTYPE],0),MATCH(Prosjektdetaljer[[#Headers],[ARRANGEMENTSBEMANNING]],Parametere[#Headers],0))*INDEX(PROSJEKTPARAMETERE!$B$12:$H$12,1,MATCH(Prosjektdetaljer[[#Headers],[ARRANGEMENTSBEMANNING]],Parametere[#Headers],0))*Prosjektdetaljer[[#This Row],[BEREGNET ARBEID]]","v":{"v":0,"d":"kr 0"}},{"$f":"INDEX(Parametere[],MATCH(Prosjektdetaljer[[#This Row],[PROSJEKTTYPE]],Parametere[PROSJEKTTYPE],0),MATCH(Prosjektdetaljer[[#Headers],[ADMINISTRASJONSPERSONALE]],Parametere[#Headers],0))*INDEX(PROSJEKTPARAMETERE!$B$12:$H$12,1,MATCH(Prosjektdetaljer[[#Headers],[ADMINISTRASJONSPERSONALE]],Parametere[#Headers],0))*Prosjektdetaljer[[#This Row],[BEREGNET ARBEID]]","v":{"v":2400,"d":"kr 2,400"}},{"$f":"INDEX(Parametere[],MATCH(Prosjektdetaljer[[#This Row],[PROSJEKTTYPE]],Parametere[PROSJEKTTYPE],0),MATCH(Prosjektdetaljer[[#Headers],[KUNDEANSVARLIG]],Parametere[#Headers],0))*INDEX(PROSJEKTPARAMETERE!$B$12:$H$12,1,MATCH(Prosjektdetaljer[[#Headers],[KUNDEANSVARLIG]],Parametere[#Headers],0))*Prosjektdetaljer[[#This Row],[FAKTISK ARBEID]]","v":{"v":14040,"d":"kr 14,040"}},{"$f":"INDEX(Parametere[],MATCH(Prosjektdetaljer[[#This Row],[PROSJEKTTYPE]],Parametere[PROSJEKTTYPE],0),MATCH(Prosjektdetaljer[[#Headers],[PROSJEKTLEDER]],Parametere[#Headers],0))*INDEX(PROSJEKTPARAMETERE!$B$12:$H$12,1,MATCH(Prosjektdetaljer[[#Headers],[PROSJEKTLEDER]],Parametere[#Headers],0))*Prosjektdetaljer[[#This Row],[FAKTISK ARBEID]]","v":{"v":23400,"d":"kr 23,400"}},{"$f":"INDEX(Parametere[],MATCH(Prosjektdetaljer[[#This Row],[PROSJEKTTYPE]],Parametere[PROSJEKTTYPE],0),MATCH(Prosjektdetaljer[[#Headers],[STRATEGILEDER]],Parametere[#Headers],0))*INDEX(PROSJEKTPARAMETERE!$B$12:$H$12,1,MATCH(Prosjektdetaljer[[#Headers],[STRATEGILEDER]],Parametere[#Headers],0))*Prosjektdetaljer[[#This Row],[FAKTISK ARBEID]]","v":{"v":5850,"d":"kr 5,850"}},{"$f":"INDEX(Parametere[],MATCH(Prosjektdetaljer[[#This Row],[PROSJEKTTYPE]],Parametere[PROSJEKTTYPE],0),MATCH(Prosjektdetaljer[[#Headers],[UTFORMINGSSPESIALIST]],Parametere[#Headers],0))*INDEX(PROSJEKTPARAMETERE!$B$12:$H$12,1,MATCH(Prosjektdetaljer[[#Headers],[UTFORMINGSSPESIALIST]],Parametere[#Headers],0))*Prosjektdetaljer[[#This Row],[FAKTISK ARBEID]]","v":{"v":3900,"d":"kr 3,900"}},{"$f":"INDEX(Parametere[],MATCH(Prosjektdetaljer[[#This Row],[PROSJEKTTYPE]],Parametere[PROSJEKTTYPE],0),MATCH(Prosjektdetaljer[[#Headers],[ARRANGEMENTSBEMANNING]],Parametere[#Headers],0))*INDEX(PROSJEKTPARAMETERE!$B$12:$H$12,1,MATCH(Prosjektdetaljer[[#Headers],[ARRANGEMENTSBEMANNING]],Parametere[#Headers],0))*Prosjektdetaljer[[#This Row],[FAKTISK ARBEID]]","v":{"v":0,"d":"kr 0"}},{"$f":"INDEX(Parametere[],MATCH(Prosjektdetaljer[[#This Row],[PROSJEKTTYPE]],Parametere[PROSJEKTTYPE],0),MATCH(Prosjektdetaljer[[#Headers],[ADMINISTRASJONSPERSONALE]],Parametere[#Headers],0))*INDEX(PROSJEKTPARAMETERE!$B$12:$H$12,1,MATCH(Prosjektdetaljer[[#Headers],[ADMINISTRASJONSPERSONALE]],Parametere[#Headers],0))*Prosjektdetaljer[[#This Row],[FAKTISK ARBEID]]","v":{"v":2340,"d":"kr 2,340"}}]
[null,"Prosjekt 3","Arrangementsutforming",{"$f":"DATE(YEAR(TODAY())+2,7,12)","v":"2024-07-12"},{"$f":"DATE(YEAR(TODAY())+2,9,19)","v":"2024-09-19"},"2025-08-07","2025-10-10",500,500,{"$f":"DAYS360(Prosjektdetaljer[[#This Row],[BEREGNET START]],Prosjektdetaljer[[#This Row],[BEREGNET AVSLUTNING]],FALSE)","v":67},{"$f":"DAYS360(Prosjektdetaljer[[#This Row],[FAKTISK START]],Prosjektdetaljer[[#This Row],[FAKTISK AVSLUTNING]],FALSE)","v":63},{"$f":"INDEX(Parametere[],MATCH(Prosjektdetaljer[[#This Row],[PROSJEKTTYPE]],Parametere[PROSJEKTTYPE],0),MATCH(Prosjektdetaljer[[#Headers],[KUNDEANSVARLIG]],Parametere[#Headers],0))*INDEX(PROSJEKTPARAMETERE!$B$12:$H$12,1,MATCH(Prosjektdetaljer[[#Headers],[KUNDEANSVARLIG]],Parametere[#Headers],0))*Prosjektdetaljer[[#This Row],[BEREGNET ARBEID]]","v":{"v":18000,"d":"kr 18,000"}},{"$f":"INDEX(Parametere[],MATCH(Prosjektdetaljer[[#This Row],[PROSJEKTTYPE]],Parametere[PROSJEKTTYPE],0),MATCH(Prosjektdetaljer[[#Headers],[PROSJEKTLEDER]],Parametere[#Headers],0))*INDEX(PROSJEKTPARAMETERE!$B$12:$H$12,1,MATCH(Prosjektdetaljer[[#Headers],[PROSJEKTLEDER]],Parametere[#Headers],0))*Prosjektdetaljer[[#This Row],[BEREGNET ARBEID]]","v":{"v":12000,"d":"kr 12,000"}},{"$f":"INDEX(Parametere[],MATCH(Prosjektdetaljer[[#This Row],[PROSJEKTTYPE]],Parametere[PROSJEKTTYPE],0),MATCH(Prosjektdetaljer[[#Headers],[STRATEGILEDER]],Parametere[#Headers],0))*INDEX(PROSJEKTPARAMETERE!$B$12:$H$12,1,MATCH(Prosjektdetaljer[[#Headers],[STRATEGILEDER]],Parametere[#Headers],0))*Prosjektdetaljer[[#This Row],[BEREGNET ARBEID]]","v":{"v":0,"d":"kr 0"}},{"$f":"INDEX(Parametere[],MATCH(Prosjektdetaljer[[#This Row],[PROSJEKTTYPE]],Parametere[PROSJEKTTYPE],0),MATCH(Prosjektdetaljer[[#Headers],[UTFORMINGSSPESIALIST]],Parametere[#Headers],0))*INDEX(PROSJEKTPARAMETERE!$B$12:$H$12,1,MATCH(Prosjektdetaljer[[#Headers],[UTFORMINGSSPESIALIST]],Parametere[#Headers],0))*Prosjektdetaljer[[#This Row],[BEREGNET ARBEID]]","v":{"v":25000,"d":"kr 25,000"}},{"$f":"INDEX(Parametere[],MATCH(Prosjektdetaljer[[#This Row],[PROSJEKTTYPE]],Parametere[PROSJEKTTYPE],0),MATCH(Prosjektdetaljer[[#Headers],[ARRANGEMENTSBEMANNING]],Parametere[#Headers],0))*INDEX(PROSJEKTPARAMETERE!$B$12:$H$12,1,MATCH(Prosjektdetaljer[[#Headers],[ARRANGEMENTSBEMANNING]],Parametere[#Headers],0))*Prosjektdetaljer[[#This Row],[BEREGNET ARBEID]]","v":{"v":0,"d":"kr 0"}},{"$f":"INDEX(Parametere[],MATCH(Prosjektdetaljer[[#This Row],[PROSJEKTTYPE]],Parametere[PROSJEKTTYPE],0),MATCH(Prosjektdetaljer[[#Headers],[ADMINISTRASJONSPERSONALE]],Parametere[#Headers],0))*INDEX(PROSJEKTPARAMETERE!$B$12:$H$12,1,MATCH(Prosjektdetaljer[[#Headers],[ADMINISTRASJONSPERSONALE]],Parametere[#Headers],0))*Prosjektdetaljer[[#This Row],[BEREGNET ARBEID]]","v":{"v":3000,"d":"kr 3,000"}},{"$f":"INDEX(Parametere[],MATCH(Prosjektdetaljer[[#This Row],[PROSJEKTTYPE]],Parametere[PROSJEKTTYPE],0),MATCH(Prosjektdetaljer[[#Headers],[KUNDEANSVARLIG]],Parametere[#Headers],0))*INDEX(PROSJEKTPARAMETERE!$B$12:$H$12,1,MATCH(Prosjektdetaljer[[#Headers],[KUNDEANSVARLIG]],Parametere[#Headers],0))*Prosjektdetaljer[[#This Row],[FAKTISK ARBEID]]","v":{"v":18000,"d":"kr 18,000"}},{"$f":"INDEX(Parametere[],MATCH(Prosjektdetaljer[[#This Row],[PROSJEKTTYPE]],Parametere[PROSJEKTTYPE],0),MATCH(Prosjektdetaljer[[#Headers],[PROSJEKTLEDER]],Parametere[#Headers],0))*INDEX(PROSJEKTPARAMETERE!$B$12:$H$12,1,MATCH(Prosjektdetaljer[[#Headers],[PROSJEKTLEDER]],Parametere[#Headers],0))*Prosjektdetaljer[[#This Row],[FAKTISK ARBEID]]","v":{"v":12000,"d":"kr 12,000"}},{"$f":"INDEX(Parametere[],MATCH(Prosjektdetaljer[[#This Row],[PROSJEKTTYPE]],Parametere[PROSJEKTTYPE],0),MATCH(Prosjektdetaljer[[#Headers],[STRATEGILEDER]],Parametere[#Headers],0))*INDEX(PROSJEKTPARAMETERE!$B$12:$H$12,1,MATCH(Prosjektdetaljer[[#Headers],[STRATEGILEDER]],Parametere[#Headers],0))*Prosjektdetaljer[[#This Row],[FAKTISK ARBEID]]","v":{"v":0,"d":"kr 0"}},{"$f":"INDEX(Parametere[],MATCH(Prosjektdetaljer[[#This Row],[PROSJEKTTYPE]],Parametere[PROSJEKTTYPE],0),MATCH(Prosjektdetaljer[[#Headers],[UTFORMINGSSPESIALIST]],Parametere[#Headers],0))*INDEX(PROSJEKTPARAMETERE!$B$12:$H$12,1,MATCH(Prosjektdetaljer[[#Headers],[UTFORMINGSSPESIALIST]],Parametere[#Headers],0))*Prosjektdetaljer[[#This Row],[FAKTISK ARBEID]]","v":{"v":25000,"d":"kr 25,000"}},{"$f":"INDEX(Parametere[],MATCH(Prosjektdetaljer[[#This Row],[PROSJEKTTYPE]],Parametere[PROSJEKTTYPE],0),MATCH(Prosjektdetaljer[[#Headers],[ARRANGEMENTSBEMANNING]],Parametere[#Headers],0))*INDEX(PROSJEKTPARAMETERE!$B$12:$H$12,1,MATCH(Prosjektdetaljer[[#Headers],[ARRANGEMENTSBEMANNING]],Parametere[#Headers],0))*Prosjektdetaljer[[#This Row],[FAKTISK ARBEID]]","v":{"v":0,"d":"kr 0"}},{"$f":"INDEX(Parametere[],MATCH(Prosjektdetaljer[[#This Row],[PROSJEKTTYPE]],Parametere[PROSJEKTTYPE],0),MATCH(Prosjektdetaljer[[#Headers],[ADMINISTRASJONSPERSONALE]],Parametere[#Headers],0))*INDEX(PROSJEKTPARAMETERE!$B$12:$H$12,1,MATCH(Prosjektdetaljer[[#Headers],[ADMINISTRASJONSPERSONALE]],Parametere[#Headers],0))*Prosjektdetaljer[[#This Row],[FAKTISK ARBEID]]","v":{"v":3000,"d":"kr 3,000"}}]
[null,"Prosjekt 4","Arrangementslogistikk",{"$f":"DATE(YEAR(TODAY())+3,7,30)","v":"2025-07-30"},{"$f":"DATE(YEAR(TODAY())+3,9,28)","v":"2025-09-28"},{"$f":"DATE(YEAR(TODAY())+3,9,14)","v":"2025-09-14"},{"$f":"DATE(YEAR(TODAY())+3,11,13)","v":"2025-11-13"},150,145,{"$f":"DAYS360(Prosjektdetaljer[[#This Row],[BEREGNET START]],Prosjektdetaljer[[#This Row],[BEREGNET AVSLUTNING]],FALSE)","v":58},{"$f":"DAYS360(Prosjektdetaljer[[#This Row],[FAKTISK START]],Prosjektdetaljer[[#This Row],[FAKTISK AVSLUTNING]],FALSE)","v":59},{"$f":"INDEX(Parametere[],MATCH(Prosjektdetaljer[[#This Row],[PROSJEKTTYPE]],Parametere[PROSJEKTTYPE],0),MATCH(Prosjektdetaljer[[#Headers],[KUNDEANSVARLIG]],Parametere[#Headers],0))*INDEX(PROSJEKTPARAMETERE!$B$12:$H$12,1,MATCH(Prosjektdetaljer[[#Headers],[KUNDEANSVARLIG]],Parametere[#Headers],0))*Prosjektdetaljer[[#This Row],[BEREGNET ARBEID]]","v":{"v":5400,"d":"kr 5,400"}},{"$f":"INDEX(Parametere[],MATCH(Prosjektdetaljer[[#This Row],[PROSJEKTTYPE]],Parametere[PROSJEKTTYPE],0),MATCH(Prosjektdetaljer[[#Headers],[PROSJEKTLEDER]],Parametere[#Headers],0))*INDEX(PROSJEKTPARAMETERE!$B$12:$H$12,1,MATCH(Prosjektdetaljer[[#Headers],[PROSJEKTLEDER]],Parametere[#Headers],0))*Prosjektdetaljer[[#This Row],[BEREGNET ARBEID]]","v":{"v":10800,"d":"kr 10,800"}},{"$f":"INDEX(Parametere[],MATCH(Prosjektdetaljer[[#This Row],[PROSJEKTTYPE]],Parametere[PROSJEKTTYPE],0),MATCH(Prosjektdetaljer[[#Headers],[STRATEGILEDER]],Parametere[#Headers],0))*INDEX(PROSJEKTPARAMETERE!$B$12:$H$12,1,MATCH(Prosjektdetaljer[[#Headers],[STRATEGILEDER]],Parametere[#Headers],0))*Prosjektdetaljer[[#This Row],[BEREGNET ARBEID]]","v":{"v":0,"d":"kr 0"}},{"$f":"INDEX(Parametere[],MATCH(Prosjektdetaljer[[#This Row],[PROSJEKTTYPE]],Parametere[PROSJEKTTYPE],0),MATCH(Prosjektdetaljer[[#Headers],[UTFORMINGSSPESIALIST]],Parametere[#Headers],0))*INDEX(PROSJEKTPARAMETERE!$B$12:$H$12,1,MATCH(Prosjektdetaljer[[#Headers],[UTFORMINGSSPESIALIST]],Parametere[#Headers],0))*Prosjektdetaljer[[#This Row],[BEREGNET ARBEID]]","v":{"v":0,"d":"kr 0"}},{"$f":"INDEX(Parametere[],MATCH(Prosjektdetaljer[[#This Row],[PROSJEKTTYPE]],Parametere[PROSJEKTTYPE],0),MATCH(Prosjektdetaljer[[#Headers],[ARRANGEMENTSBEMANNING]],Parametere[#Headers],0))*INDEX(PROSJEKTPARAMETERE!$B$12:$H$12,1,MATCH(Prosjektdetaljer[[#Headers],[ARRANGEMENTSBEMANNING]],Parametere[#Headers],0))*Prosjektdetaljer[[#This Row],[BEREGNET ARBEID]]","v":{"v":1200,"d":"kr 1,200"}},{"$f":"INDEX(Parametere[],MATCH(Prosjektdetaljer[[#This Row],[PROSJEKTTYPE]],Parametere[PROSJEKTTYPE],0),MATCH(Prosjektdetaljer[[#Headers],[ADMINISTRASJONSPERSONALE]],Parametere[#Headers],0))*INDEX(PROSJEKTPARAMETERE!$B$12:$H$12,1,MATCH(Prosjektdetaljer[[#Headers],[ADMINISTRASJONSPERSONALE]],Parametere[#Headers],0))*Prosjektdetaljer[[#This Row],[BEREGNET ARBEID]]","v":{"v":900,"d":"kr 900"}},{"$f":"INDEX(Parametere[],MATCH(Prosjektdetaljer[[#This Row],[PROSJEKTTYPE]],Parametere[PROSJEKTTYPE],0),MATCH(Prosjektdetaljer[[#Headers],[KUNDEANSVARLIG]],Parametere[#Headers],0))*INDEX(PROSJEKTPARAMETERE!$B$12:$H$12,1,MATCH(Prosjektdetaljer[[#Headers],[KUNDEANSVARLIG]],Parametere[#Headers],0))*Prosjektdetaljer[[#This Row],[FAKTISK ARBEID]]","v":{"v":5220,"d":"kr 5,220"}},{"$f":"INDEX(Parametere[],MATCH(Prosjektdetaljer[[#This Row],[PROSJEKTTYPE]],Parametere[PROSJEKTTYPE],0),MATCH(Prosjektdetaljer[[#Headers],[PROSJEKTLEDER]],Parametere[#Headers],0))*INDEX(PROSJEKTPARAMETERE!$B$12:$H$12,1,MATCH(Prosjektdetaljer[[#Headers],[PROSJEKTLEDER]],Parametere[#Headers],0))*Prosjektdetaljer[[#This Row],[FAKTISK ARBEID]]","v":{"v":10440,"d":"kr 10,440"}},{"$f":"INDEX(Parametere[],MATCH(Prosjektdetaljer[[#This Row],[PROSJEKTTYPE]],Parametere[PROSJEKTTYPE],0),MATCH(Prosjektdetaljer[[#Headers],[STRATEGILEDER]],Parametere[#Headers],0))*INDEX(PROSJEKTPARAMETERE!$B$12:$H$12,1,MATCH(Prosjektdetaljer[[#Headers],[STRATEGILEDER]],Parametere[#Headers],0))*Prosjektdetaljer[[#This Row],[FAKTISK ARBEID]]","v":{"v":0,"d":"kr 0"}},{"$f":"INDEX(Parametere[],MATCH(Prosjektdetaljer[[#This Row],[PROSJEKTTYPE]],Parametere[PROSJEKTTYPE],0),MATCH(Prosjektdetaljer[[#Headers],[UTFORMINGSSPESIALIST]],Parametere[#Headers],0))*INDEX(PROSJEKTPARAMETERE!$B$12:$H$12,1,MATCH(Prosjektdetaljer[[#Headers],[UTFORMINGSSPESIALIST]],Parametere[#Headers],0))*Prosjektdetaljer[[#This Row],[FAKTISK ARBEID]]","v":{"v":0,"d":"kr 0"}},{"$f":"INDEX(Parametere[],MATCH(Prosjektdetaljer[[#This Row],[PROSJEKTTYPE]],Parametere[PROSJEKTTYPE],0),MATCH(Prosjektdetaljer[[#Headers],[ARRANGEMENTSBEMANNING]],Parametere[#Headers],0))*INDEX(PROSJEKTPARAMETERE!$B$12:$H$12,1,MATCH(Prosjektdetaljer[[#Headers],[ARRANGEMENTSBEMANNING]],Parametere[#Headers],0))*Prosjektdetaljer[[#This Row],[FAKTISK ARBEID]]","v":{"v":1160,"d":"kr 1,160"}},{"$f":"INDEX(Parametere[],MATCH(Prosjektdetaljer[[#This Row],[PROSJEKTTYPE]],Parametere[PROSJEKTTYPE],0),MATCH(Prosjektdetaljer[[#Headers],[ADMINISTRASJONSPERSONALE]],Parametere[#Headers],0))*INDEX(PROSJEKTPARAMETERE!$B$12:$H$12,1,MATCH(Prosjektdetaljer[[#Headers],[ADMINISTRASJONSPERSONALE]],Parametere[#Headers],0))*Prosjektdetaljer[[#This Row],[FAKTISK ARBEID]]","v":{"v":870,"d":"kr 870"}}]
[null,"Prosjekt 5","Arrangementsbemanning",{"$f":"DATE(YEAR(TODAY())+4,8,11)","v":"2026-08-11"},{"$f":"DATE(YEAR(TODAY())+4,8,21)","v":"2026-08-21"},{"$f":"DATE(YEAR(TODAY())+4,9,14)","v":"2026-09-14"},{"$f":"DATE(YEAR(TODAY())+4,9,25)","v":"2026-09-25"},250,255,{"$f":"DAYS360(Prosjektdetaljer[[#This Row],[BEREGNET START]],Prosjektdetaljer[[#This Row],[BEREGNET AVSLUTNING]],FALSE)","v":10},{"$f":"DAYS360(Prosjektdetaljer[[#This Row],[FAKTISK START]],Prosjektdetaljer[[#This Row],[FAKTISK AVSLUTNING]],FALSE)","v":11},{"$f":"INDEX(Parametere[],MATCH(Prosjektdetaljer[[#This Row],[PROSJEKTTYPE]],Parametere[PROSJEKTTYPE],0),MATCH(Prosjektdetaljer[[#Headers],[KUNDEANSVARLIG]],Parametere[#Headers],0))*INDEX(PROSJEKTPARAMETERE!$B$12:$H$12,1,MATCH(Prosjektdetaljer[[#Headers],[KUNDEANSVARLIG]],Parametere[#Headers],0))*Prosjektdetaljer[[#This Row],[BEREGNET ARBEID]]","v":{"v":9000,"d":"kr 9,000"}},{"$f":"INDEX(Parametere[],MATCH(Prosjektdetaljer[[#This Row],[PROSJEKTTYPE]],Parametere[PROSJEKTTYPE],0),MATCH(Prosjektdetaljer[[#Headers],[PROSJEKTLEDER]],Parametere[#Headers],0))*INDEX(PROSJEKTPARAMETERE!$B$12:$H$12,1,MATCH(Prosjektdetaljer[[#Headers],[PROSJEKTLEDER]],Parametere[#Headers],0))*Prosjektdetaljer[[#This Row],[BEREGNET ARBEID]]","v":{"v":3000,"d":"kr 3,000"}},{"$f":"INDEX(Parametere[],MATCH(Prosjektdetaljer[[#This Row],[PROSJEKTTYPE]],Parametere[PROSJEKTTYPE],0),MATCH(Prosjektdetaljer[[#Headers],[STRATEGILEDER]],Parametere[#Headers],0))*INDEX(PROSJEKTPARAMETERE!$B$12:$H$12,1,MATCH(Prosjektdetaljer[[#Headers],[STRATEGILEDER]],Parametere[#Headers],0))*Prosjektdetaljer[[#This Row],[BEREGNET ARBEID]]","v":{"v":0,"d":"kr 0"}},{"$f":"INDEX(Parametere[],MATCH(Prosjektdetaljer[[#This Row],[PROSJEKTTYPE]],Parametere[PROSJEKTTYPE],0),MATCH(Prosjektdetaljer[[#Headers],[UTFORMINGSSPESIALIST]],Parametere[#Headers],0))*INDEX(PROSJEKTPARAMETERE!$B$12:$H$12,1,MATCH(Prosjektdetaljer[[#Headers],[UTFORMINGSSPESIALIST]],Parametere[#Headers],0))*Prosjektdetaljer[[#This Row],[BEREGNET ARBEID]]","v":{"v":0,"d":"kr 0"}},{"$f":"INDEX(Parametere[],MATCH(Prosjektdetaljer[[#This Row],[PROSJEKTTYPE]],Parametere[PROSJEKTTYPE],0),MATCH(Prosjektdetaljer[[#Headers],[ARRANGEMENTSBEMANNING]],Parametere[#Headers],0))*INDEX(PROSJEKTPARAMETERE!$B$12:$H$12,1,MATCH(Prosjektdetaljer[[#Headers],[ARRANGEMENTSBEMANNING]],Parametere[#Headers],0))*Prosjektdetaljer[[#This Row],[BEREGNET ARBEID]]","v":{"v":12000,"d":"kr 12,000"}},{"$f":"INDEX(Parametere[],MATCH(Prosjektdetaljer[[#This Row],[PROSJEKTTYPE]],Parametere[PROSJEKTTYPE],0),MATCH(Prosjektdetaljer[[#Headers],[ADMINISTRASJONSPERSONALE]],Parametere[#Headers],0))*INDEX(PROSJEKTPARAMETERE!$B$12:$H$12,1,MATCH(Prosjektdetaljer[[#Headers],[ADMINISTRASJONSPERSONALE]],Parametere[#Headers],0))*Prosjektdetaljer[[#This Row],[BEREGNET ARBEID]]","v":{"v":1500,"d":"kr 1,500"}},{"$f":"INDEX(Parametere[],MATCH(Prosjektdetaljer[[#This Row],[PROSJEKTTYPE]],Parametere[PROSJEKTTYPE],0),MATCH(Prosjektdetaljer[[#Headers],[KUNDEANSVARLIG]],Parametere[#Headers],0))*INDEX(PROSJEKTPARAMETERE!$B$12:$H$12,1,MATCH(Prosjektdetaljer[[#Headers],[KUNDEANSVARLIG]],Parametere[#Headers],0))*Prosjektdetaljer[[#This Row],[FAKTISK ARBEID]]","v":{"v":9180,"d":"kr 9,180"}},{"$f":"INDEX(Parametere[],MATCH(Prosjektdetaljer[[#This Row],[PROSJEKTTYPE]],Parametere[PROSJEKTTYPE],0),MATCH(Prosjektdetaljer[[#Headers],[PROSJEKTLEDER]],Parametere[#Headers],0))*INDEX(PROSJEKTPARAMETERE!$B$12:$H$12,1,MATCH(Prosjektdetaljer[[#Headers],[PROSJEKTLEDER]],Parametere[#Headers],0))*Prosjektdetaljer[[#This Row],[FAKTISK ARBEID]]","v":{"v":3060,"d":"kr 3,060"}},{"$f":"INDEX(Parametere[],MATCH(Prosjektdetaljer[[#This Row],[PROSJEKTTYPE]],Parametere[PROSJEKTTYPE],0),MATCH(Prosjektdetaljer[[#Headers],[STRATEGILEDER]],Parametere[#Headers],0))*INDEX(PROSJEKTPARAMETERE!$B$12:$H$12,1,MATCH(Prosjektdetaljer[[#Headers],[STRATEGILEDER]],Parametere[#Headers],0))*Prosjektdetaljer[[#This Row],[FAKTISK ARBEID]]","v":{"v":0,"d":"kr 0"}},{"$f":"INDEX(Parametere[],MATCH(Prosjektdetaljer[[#This Row],[PROSJEKTTYPE]],Parametere[PROSJEKTTYPE],0),MATCH(Prosjektdetaljer[[#Headers],[UTFORMINGSSPESIALIST]],Parametere[#Headers],0))*INDEX(PROSJEKTPARAMETERE!$B$12:$H$12,1,MATCH(Prosjektdetaljer[[#Headers],[UTFORMINGSSPESIALIST]],Parametere[#Headers],0))*Prosjektdetaljer[[#This Row],[FAKTISK ARBEID]]","v":{"v":0,"d":"kr 0"}},{"$f":"INDEX(Parametere[],MATCH(Prosjektdetaljer[[#This Row],[PROSJEKTTYPE]],Parametere[PROSJEKTTYPE],0),MATCH(Prosjektdetaljer[[#Headers],[ARRANGEMENTSBEMANNING]],Parametere[#Headers],0))*INDEX(PROSJEKTPARAMETERE!$B$12:$H$12,1,MATCH(Prosjektdetaljer[[#Headers],[ARRANGEMENTSBEMANNING]],Parametere[#Headers],0))*Prosjektdetaljer[[#This Row],[FAKTISK ARBEID]]","v":{"v":12240,"d":"kr 12,240"}},{"$f":"INDEX(Parametere[],MATCH(Prosjektdetaljer[[#This Row],[PROSJEKTTYPE]],Parametere[PROSJEKTTYPE],0),MATCH(Prosjektdetaljer[[#Headers],[ADMINISTRASJONSPERSONALE]],Parametere[#Headers],0))*INDEX(PROSJEKTPARAMETERE!$B$12:$H$12,1,MATCH(Prosjektdetaljer[[#Headers],[ADMINISTRASJONSPERSONALE]],Parametere[#Headers],0))*Prosjektdetaljer[[#This Row],[FAKTISK ARBEID]]","v":{"v":1530,"d":"kr 1,530"}}]
[null,"TOTALSUM",{"$nulls":5},{"$f":"SUBTOTAL(109,Prosjektdetaljer[BEREGNET ARBEID])","v":1500},{"$f":"SUBTOTAL(109,Prosjektdetaljer[FAKTISK ARBEID])","v":1510},{"$f":"SUBTOTAL(109,Prosjektdetaljer[BEREGNET VARIGHET])","v":225},{"$f":"SUBTOTAL(109,Prosjektdetaljer[FAKTISK VARIGHET])","v":597}]

{"sheet":"PROSJEKTTOTALER","index":3,"n_rows":10,"n_cols":14,"rows_kept":10}
[null,{"$f":"PROSJEKTPARAMETERE!B1","v":"Firmanavn"}]
[null,"Prosjektsporing for arrangementsbehandling"]
[null,{"$f":"PROSJEKTPARAMETERE!B3","v":"Firmanavn Konfidensielt"}]
["Pivottabellen som starter i cellen til høyre, oppdateres automatisk.\nINFORMASJON\nHvis du vil oppdatere pivottabellen til høyre, markerer du den (en celle i pivottabellen) og velger Oppdater på fanen på PIVOTTABELLVERKTØY | ANALYSER-båndet. Eller trykk på SKIFT+F10 i en celle i pivottabellen og velg Oppdater.","PROSJEKTNAVN","BEREGNET KUNDEANSVARLIG","BEREGNET PROSJEKTLEDER","BEREGNET PROSJEKTLEDER ","BEREGNET UTFORMINGSSPESIALIST","BEREGNET ARRANGEMENTSBEMANNING","BEREGNET ADMINISTRASJONSPERSONALE","FAKTISK KUNDEANSVARLIG","FAKTISK PROSJEKTLEDER","FAKTISK PROSJEKTLEDER ","FAKTISK UTFORMINGSSPESIALIST","FAKTISK ARRANGEMENTSBEMANNING","FAKTISK ADMINISTRASJONSPERSONALE"]
[null,"Prosjekt 1",{"v":7200,"d":"kr 7,200.00"},{"v":2400,"d":"kr 2,400.00"},{"v":18000,"d":"kr 18,000.00"},{"v":0,"d":"kr 0.00"},{"v":0,"d":"kr 0.00"},{"v":1200,"d":"kr 1,200.00"},{"v":7920,"d":"kr 7,920.00"},{"v":2640,"d":"kr 2,640.00"},{"v":19800,"d":"kr 19,800.00"},{"v":0,"d":"kr 0.00"},{"v":0,"d":"kr 0.00"},{"v":1320,"d":"kr 1,320.00"}]
[null,"Prosjekt 2",{"v":14400,"d":"kr 14,400.00"},{"v":24000,"d":"kr 24,000.00"},{"v":6000,"d":"kr 6,000.00"},{"v":4000,"d":"kr 4,000.00"},{"v":0,"d":"kr 0.00"},{"v":2400,"d":"kr 2,400.00"},{"v":14040,"d":"kr 14,040.00"},{"v":23400,"d":"kr 23,400.00"},{"v":5850,"d":"kr 5,850.00"},{"v":3900,"d":"kr 3,900.00"},{"v":0,"d":"kr 0.00"},{"v":2340,"d":"kr 2,340.00"}]
[null,"Prosjekt 3",{"v":18000,"d":"kr 18,000.00"},{"v":12000,"d":"kr 12,000.00"},{"v":0,"d":"kr 0.00"},{"v":25000,"d":"kr 25,000.00"},{"v":0,"d":"kr 0.00"},{"v":3000,"d":"kr 3,000.00"},{"v":18000,"d":"kr 18,000.00"},{"v":12000,"d":"kr 12,000.00"},{"v":0,"d":"kr 0.00"},{"v":25000,"d":"kr 25,000.00"},{"v":0,"d":"kr 0.00"},{"v":3000,"d":"kr 3,000.00"}]
[null,"Prosjekt 4",{"v":5400,"d":"kr 5,400.00"},{"v":10800,"d":"kr 10,800.00"},{"v":0,"d":"kr 0.00"},{"v":0,"d":"kr 0.00"},{"v":1200,"d":"kr 1,200.00"},{"v":900,"d":"kr 900.00"},{"v":5220,"d":"kr 5,220.00"},{"v":10440,"d":"kr 10,440.00"},{"v":0,"d":"kr 0.00"},{"v":0,"d":"kr 0.00"},{"v":1160,"d":"kr 1,160.00"},{"v":870,"d":"kr 870.00"}]
[null,"Prosjekt 5",{"v":9000,"d":"kr 9,000.00"},{"v":3000,"d":"kr 3,000.00"},{"v":0,"d":"kr 0.00"},{"v":0,"d":"kr 0.00"},{"v":12000,"d":"kr 12,000.00"},{"v":1500,"d":"kr 1,500.00"},{"v":9180,"d":"kr 9,180.00"},{"v":3060,"d":"kr 3,060.00"},{"v":0,"d":"kr 0.00"},{"v":0,"d":"kr 0.00"},{"v":12240,"d":"kr 12,240.00"},{"v":1530,"d":"kr 1,530.00"}]
[null,"Totalsum",{"v":54000,"d":"kr 54,000.00"},{"v":52200,"d":"kr 52,200.00"},{"v":24000,"d":"kr 24,000.00"},{"v":29000,"d":"kr 29,000.00"},{"v":13200,"d":"kr 13,200.00"},{"v":9000,"d":"kr 9,000.00"},{"v":54360,"d":"kr 54,360.00"},{"v":51540,"d":"kr 51,540.00"},{"v":25650,"d":"kr 25,650.00"},{"v":28900,"d":"kr 28,900.00"},{"v":13400,"d":"kr 13,400.00"},{"v":9060,"d":"kr 9,060.00"}]